Cogmind - Beta 16.1 @@@ ROGUE MODE // 2026.04.03 @ 20:12:10 Player: chebyrekser Result: Destroyed by Y-45 Defender with Heavy Assault Rifle Performance ------------- Evolutions (2) 1000 Regions Visited (3) 600 Robots Destroyed (0) 0 Value Destroyed (0) 0 Prototype IDs (0) 0 Alien Tech Used (0) 0 Bonus (470) 470 TOTAL SCORE: 2070 Bonus ------- Pacifist 470 Cogmind --------- Core Integrity 0/550 Matter 300/300 Energy 100/100 System Corruption 4% Temperature Cool (27) Movement Core (50) Location -8/Materials Parts ------- > --- POWER (1) -------- (None) > --- PROPULSION (4) --- (None) > --- UTILITY (4) ------ (None) > --- WEAPON (2) ------- (None) > --- INVENTORY (5) ---- Ion Engine Wheel Compact Wheel Assault Rifle Light Assault Rifle Peak State ------------ > --- POWER ------------ Ion Engine > --- PROPULSION ------- Aluminum Leg Aluminum Leg > --- UTILITY ---------- Heat Sink Small Storage Unit Visual Processing Unit > --- WEAPON ----------- (None) > --- INVENTORY -------- Ion Engine Wheel Compact Wheel Assault Rifle Light Assault Rifle [Rating: 7] Favorites ----------- Power Ion Engine Engine Ion Engine Propulsion Aluminum Leg Leg Aluminum Leg Utility Small Storage Unit Device Heat Sink Storage Small Storage Unit Processor Visual Processing Unit Weapon None Build | -11 -10 -9 -8 ------- Run | Yrd Mat Mat Mat Slots Evolved 4 | . . 2 2 Power . | . . . . Propulsion 2 | . . 1 1 Utility 2 | . . 1 1 Weapon . | . . . . Parts Attached 7 | 4 1 1 1 Power 1 | 1 . . . Engine 1 | 1 . . . Core . | . . . . Reactor . | . . . . Propulsion 3 | 2 . . 1 Treads . | . . . . Leg 3 | 2 . . 1 Wheel . | . . . . Hover . | . . . . Flight . | . . . . Utility 3 | 1 1 1 . Device 1 | . 1 . . Storage 1 | 1 . . . Processor 1 | . . 1 . Hackware . | . . . . Protection . | . . . . Artifact . | . . . . Weapon . | . . . . Energy Gun . | . . . . Energy Cannon . | . . . . Ballistic Gun . | . . . . Ballistic Cannon . | . . . . Launcher . | . . . . Special Weapon . | . . . . Impact Weapon . | . . . . Slashing Weapon . | . . . . Piercing Weapon . | . . . . Special Melee Weapon . | . . . . Unidentified Prototypes . | . . . . Parts Lost 7 | . . 3 4 Power 1 | . . 1 . Propulsion 3 | . . 1 2 Utility 3 | . . 1 2 Weapon . | . . . . Highest Loss Streak 4 | . . 1 4 To Critical Strikes . | . . . . Average Backups 4 | 2 5 5 5 Power . | . 1 1 1 Propulsion 1 | 1 2 2 2 Utility . | . . . . Weapon 1 | . 2 2 2 Tool/Special . | . . . . Unused Backups 5 | . . . 5 Power 1 | . . . 1 Propulsion 2 | . . . 2 Utility . | . . . . Weapon 2 | . . . 2 Tool/Special . | . . . . Average Slot Usage (%) 53 | . 69 54 28 Engine 9 | . 14 11 . Leg 20 | . 28 17 12 Device 6 | . 12 5 . Storage 11 | . 14 11 9 Processor 5 | . . 9 7 Peak Build Rating 7 | 4 5 7 7 Average Rating 5 | 3 4 5 5 On Entrance 3 | . 4 5 4 Avg Prop Armor Cover (%) . | . . . . Naked Turns 3 | . . . 3 Heaviest Build 11 | 10 11 11 5 Greatest Support 25 | 20 20 20 25 Greatest Overweight (x) 1 | . . . 1 Average Overweight (x) . | . . . . Largest Inventory Capacity 8 | 8 8 8 8 Average Capacity 7 | 7 8 8 7 Most Carried 5 | 5 5 5 5 Average Carried 4 | 2 5 5 5 Final Capacity 8 | 8 8 8 5 Final Carried 5 | 5 5 5 5 Class Distribution -------------------- 100% | Mutant Dominant Class ---------------- Mutant | -10/Materials Mutant | -9/Materials Mutant | -8/Materials Resources | -11 -10 -9 -8 ----------- Run | Yrd Mat Mat Mat Matter Collected 177 | 177 . . . Remotely . | . . . . Salvage Created . | . . . . Parts . | . . . . Haulers Intercepted . | . . . . Recyclers Shooed . | . . . . Parts Field Recycled . | . . . . Retrieved Matter . | . . . . Parts Self-Destructed . | . . . . Prevented . | . . . . Parts Restored . | . . . . Kills | -11 -10 -9 -8 ------- Run | Yrd Mat Mat Mat Combat Hostiles Destroyed . | . . . . Classes Destroyed . | . . . . Best Kill Streak . | . . . . Combat Bots Only . | . . . . Max Kills in Single Turn . | . . . . Gunslinging . | . . . . Exploded . | . . . . Melee . | . . . . Uniques/NPCs Destroyed . | . . . . Combat | -11 -10 -9 -8 -------- Run | Yrd Mat Mat Mat Hostile Shots Fired 127 | . 6 53 68 Missed 39 | . 3 19 17 Hits 88 | . 3 34 51 Melee 3 | . . . 3 Projectile 85 | . 3 34 48 Critical Strikes 3 | . . 1 2 Damage Taken 1331 | . 48 446 837 Core 753 | . . 188 565 Absorbed by Shields . | . . . . Core Remaining (%) 84 | 100 100 53 . Volleys Fired . | . . . . Largest . | . . . . Hottest . | . . . . Shots Fired . | . . . . Gun . | . . . . Cannon . | . . . . Launcher . | . . . . Special . | . . . . Kinetic . | . . . . Thermal . | . . . . Explosive . | . . . . Electromagnetic . | . . . . Robot Hit Streak . | . . . . Robot Miss Streak . | . . . . Penetration Max . | . . . . Secondary Targets . | . . . . Shots Hit Robots . | . . . . Core Hits 4 | . . 3 1 Critical Kills . | . . . . Critical Parts Destroyed . | . . . . Critical Strikes . | . . . . Melee Attacks . | . . . . Impact . | . . . . Slashing . | . . . . Piercing . | . . . . Sneak Attacks . | . . . . Combat Hostiles . | . . . . Follow-up Attacks . | . . . . Damage Inflicted 67 | . 10 40 17 Guns . | . . . . Cannons . | . . . . Explosions . | . . . . Melee . | . . . . Ramming 67 | . 10 40 17 Kinetic . | . . . . Thermal . | . . . . Explosive . | . . . . Electromagnetic . | . . . . Impact . | . . . . Slashing . | . . . . Piercing . | . . . . Highest Corruption 4 | . 1 . 4 Average Corruption 1 | . 1 . 4 Corruption Purged . | . . . . Corruption Blocked . | . . . . Overload Shots . | . . . . Overflow Damage . | . . . . Projectiles . | . . . . Explosions . | . . . . Melee . | . . . . Knockbacks . | . . . . Impact . | . . . . Kinetic . | . . . . Secondary . | . . . . Self-Inflicted Damage 8 | . . . 8 Shots . | . . . . Rammed 4 | . . . 4 Targets Rammed 19 | . 1 14 4 Kicked 15 | . 1 14 . Crushed . | . . . . Highest Temperature 14 | . . 4 14 Average Temperature 6 | . . 4 7 Received Heat Transfer 597 | . 27 192 378 Siege Activations . | . . . . Martial Activations . | . . . . Shielding Activations . | . . . . Robots Disrupted . | . . . . Combat Hostiles . | . . . . Robots Corrupted . | . . . . Combat Hostiles . | . . . . Parts Fried . | . . . . Impact Corruptions . | . . . . Robots Melted . | . . . . Combat Hostiles . | . . . . Parts Melted . | . . . . Heat Transferred . | . . . . Parts Sabotaged . | . . . . Parts Stolen . | . . . . Parts Stripped . | . . . . Power Chain Reactions . | . . . . Alert | -11 -10 -9 -8 ------- Run | Yrd Mat Mat Mat Maximum Alert Level . | . . . . Low Security (%) 100 | 100 100 100 100 Level 1 . | . . . . Level 2 . | . . . . Level 3 . | . . . . Level 4 . | . . . . Level 5 . | . . . . High Security . | . . . . Max Security . | . . . . Peak Influence 55 | . 15 55 30 Initial 18 | . . . 18 Average 4 | . 1 5 9 Influence Increases 167 | . 19 111 37 Successful Hack 17 | . 4 6 7 Lose Combat Pursuer 150 | . 15 105 30 Influence Decreases 167 | . 19 66 82 Entered New Map 27 | . . . 27 Time Decay 98 | . 19 41 38 Lost Part 42 | . . 25 17 Squads Dispatched 2 | . 1 1 . Investigation 1 | . . 1 . Extermination . | . . . . Reinforcement 1 | . 1 . . Assault . | . . . . Garrison . | . . . . Intercept . | . . . . Searches Triggered . | . . . . Construction Impeded . | . . . . Haulers Reinforced . | . . . . Active Scanning Responses . | . . . . Cargo Convoy Interrupts . | . . . . Stealth | -11 -10 -9 -8 --------- Run | Yrd Mat Mat Mat Distress Signals 1 | . 1 . . Communications Jammed . | . . . . Distress Signals . | . . . . Times Spotted 31 | . 8 14 9 Peak Tracking Total 8 | . 3 7 8 Tactical Retreats 6 | . 1 4 1 Traps | -11 -10 -9 -8 ------- Run | Yrd Mat Mat Mat Traps Triggered 1 | . 1 . . Indirectly . | . . . . Trap Hack Attempts . | . . . . Triggered . | . . . . Disarmed . | . . . . Reprogrammed . | . . . . Reused . | . . . . Traps Extracted . | . . . . Installed . | . . . . Triggered . | . . . . Machines | -11 -10 -9 -8 ---------- Run | Yrd Mat Mat Mat Machines Disabled . | . . . . Max in Single Turn . | . . . . Garrison Access 1 | . . . 1 Machines Repaired . | . . . . Machines Dismantled . | . . . . Machines Sabotaged . | . . . . Overloaded Fab Kills . | . . . . Hacking | -11 -10 -9 -8 --------- Run | Yrd Mat Mat Mat Machines Accessed 10 | . 3 4 3 Terminals 8 | . 2 4 2 Fabricators . | . . . . Repair Stations . | . . . . Recycling Units 1 | . 1 . . Scanalyzers . | . . . . Garrison Access 1 | . . . 1 Total Hacks 24 | . 8 10 6 Successful 12 | . 6 2 4 Failed 12 | . 2 8 2 Catastrophic . | . . . . Database Lockouts . | . . . . Manual 20 | . 7 8 5 Terminals 22 | . 7 10 5 Fabricators . | . . . . Repair Stations . | . . . . Recycling Units 1 | . 1 . . Scanalyzers . | . . . . Garrison Access 1 | . . . 1 Terminal Hacks . | . . . . Fabricator Hacks . | . . . . Repair Station Hacks . | . . . . Recycling Unit Hacks 1 | . 1 . . Retrieve Components 1 | . 1 . . Scanalyzer . | . . . . Garrison Access Hacks 1 | . . . 1 Seal Access 1 | . . . 1 Unauthorized Hacks 10 | . 5 2 3 Terminals 10 | . 5 2 3 Track 4 | . 2 1 1 Assimilate 1 | . . 1 . Botnet 1 | . 1 . . Disrupt 2 | . . . 2 Operators 1 | . 1 . . Skim 1 | . 1 . . Fabricators . | . . . . Repair Stations . | . . . . Recycling Units . | . . . . Scanalyzers . | . . . . Garrison Access . | . . . . Data Cores Recovered . | . . . . Used . | . . . . Hacking Detections 8 | . 2 4 2 Full Trace Events 1 | . . 1 . Feedback Events . | . . . . Feedback Blocked . | . . . . Robot Schematics Acquired . | . . . . Robots Built . | . . . . Authchips . | . . . . Time . | . . . . Total Robot Build Rating . | . . . . Part Schematics Acquired . | . . . . Parts Built . | . . . . Authchips . | . . . . Time . | . . . . Total Part Build Rating . | . . . . Part Studies Acquired . | . . . . Parts Repaired . | . . . . Time . | . . . . Parts Recycled . | . . . . Recycled Matter . | . . . . Retrieved Matter . | . . . . Retrieved Components 2 | . 2 . . Parts Scanalyzed . | . . . . Part Schematics Acquired . | . . . . Parts Damaged . | . . . . Bothacking | -11 -10 -9 -8 ------------ Run | Yrd Mat Mat Mat Used RIF Installer . | . . . . Robots Hacked . | . . . . Non-combat . | . . . . Combat . | . . . . Robot Hacks Applied . | . . . . Relay Couplers Released . | . . . . Fabnet Peak Effective % . | . . . . Robots Rewired . | . . . . Allies Hacked . | . . . . Hacks Repelled . | . . . . Allies | -11 -10 -9 -8 -------- Run | Yrd Mat Mat Mat Total Allies 1 | . . 1 . Largest Group 1 | . . 1 . Highest-Rated Group 10 | . . 10 . Highest-Rated Ally 10 | . . 10 . Total Orders . | . . . . Ally Attacks . | . . . . Total Damage . | . . . . Kills . | . . . . Allies Corrupted . | . . . . Allies Melted . | . . . . Intel | -11 -10 -9 -8 ------- Run | Yrd Mat Mat Mat Active Infowar (turns) 335 | . . 225 110 Optics 335 | . . 225 110 Robot Analysis Total . | . . . . Derelict Logs Recovered . | . . . . Drone Launches . | . . . . Drone Recoveries . | . . . . Exploration | -11 -10 -9 -8 ------------- Run | Yrd Mat Mat Mat Turns Passed 683 | 76 216 254 137 Spaces Moved 530 | 58 176 184 112 Core 18 | 5 . . 13 Treads . | . . . . Legs 512 | 53 176 184 99 Wheels . | . . . . Hover . | . . . . Flight . | . . . . Fastest Speed 50 | 50 120 120 100 Average Speed 118 | 113 120 120 117 Slowest Speed 120 | 120 120 120 120 Overloaded Moves . | . . . . Propulsion Burnouts . | . . . . Robots Hopped . | . . . . Potential Cave-ins . | . . . . Cave-ins Triggered . | . . . . Exploration Rate (%) 29 | 3 53 42 20 Regions Visited 3 Branch Regions . Pre-discovered Areas . | . . . . Known Exits Taken . | . . . . Unknown Exits Taken 3 | 1 1 1 . Scrap Searched . | . . . . Spaces Dug . | . . . . Terrain Destroyed . | . . . . Melee . | . . . . Projectile . | . . . . AOE . | . . . . Terrain Rammed . | . . . . Walls Destroyed . | . . . . Machines Disabled . | . . . . Actions | -11 -10 -9 -8 --------- Run | Yrd Mat Mat Mat Total 577 | 66 180 214 117 Wait 19 | . 3 16 . Move 528 | 57 175 184 112 Hop . | . . . . Pick Up 5 | 5 . . . Fast Attach 7 | 4 1 1 1 Attach . | . . . . Detach . | . . . . Swap . | . . . . Drop . | . . . . Fire . | . . . . Melee . | . . . . Ram 4 | . . . 4 Kick 14 | . 1 13 . Crush . | . . . . Escape Stasis . | . . . . Rewire . | . . . . Trap . | . . . . Miscellaneous . | . . . . Route ------- -11/Scrapyard -10/Materials -9/Materials -8/Materials History --------- Turn | Location | Event 3 | -11/Scrapyard | Discovered new exit (range 16) 77 | -11/Scrapyard | Entered Materials 250 | -10/Materials | Discovered new exit (range 11) 293 | -10/Materials | Entered another Materials area 293 | -9/Materials | Evolved 2 slots: Propulsion x1, Utility x1 302 | -9/Materials | Build established: Mutant 508 | -9/Materials | Discovered new exit (range 18) 547 | -9/Materials | Entered another Materials area 547 | -8/Materials | Evolved 2 slots: Propulsion x1, Utility x1 666 | -8/Materials | Core integrity fell below 50% 683 | -8/Materials | Core integrity fell below 20% 684 | -8/Materials | Destroyed by Y-45 Defender with Heavy Assault Rifle Last Messages --------------- 00645_ Aluminum Leg destroyed. 00645_ K-01 Serf collects debris. 00657_ Visual Processing Unit destroyed. 00657_ System corrupted by crushing effect (+4). 00659_ Critical hit (Burn: +37). 00660_ B-36 Bruiser suffers critical hit (Burn). 00667_ Carbon-fiber Leg destroyed. 00678_ B-36 Bruiser heat spikes uncontrollably. 00679_ B-36 Bruiser heat damages core (-5). 00680_ B-36 Bruiser overheating. 00681_ Slammed into G-47 Trooper. 00681_ Destabilizing: Core damaged (-5). 00681_ Sml. Storage Unit destroyed. 00681_ Critical hit (Burn: +37). 00681_ B-36 Bruiser overheating. 00682_ Slammed into G-47 Trooper. 00682_ B-36 Bruiser overheating. 00683_ Slammed into G-50 Soldier. 00684_ Slammed into G-47 Trooper. 00684_ Destabilizing: Core damaged (-16). Map ----- +----------------------------------------------------+ | ????????????????????### #" "####"T"## | | ????????????????????# | | ????????????????????# | | ????????????????????# | | ????????????????????# """ """ | | ????????????????????# """"""""" | | ????????????????????# """"" " | | ????????????????????# | | ????????????????????# | | ????????????????????# | | ????????????????????# | | ????????????????????# | | ????????????????????# | | ????????????????????# * ]] | | ?#####??###?????????# ]] | | ?# #?????????# ]] | | ?# ! """ #?????????# | | ?# """ #???####### ] | | ?# """ #??# ! # | | ?#] #??# ## | | ?# #??# """ ## #####+######### | | ?# "Y" #??# """ ## ## #???? | | ?# """ #??? """ ## ## T """ #???? | | ?#! #????? ## ## """ #???? | | ??###+##+#########+## # """ #???? | | ???# g gg@ # #???? | | ???# bY g% g Y # """ #???? | | ???# ##+#########+## # """ #???? | | ???# # ?????# ###### """ #???? | | ???# # ???#** #????# ?? ????? | | ???#### """ ?#*! #????#####????????? | | ??????# """"" ]## #?????????????????? | | ??????# """"" ## #?????????????????? | | ??????# """"" ##! #?????????????????? | | ??????# ""??? # #?????????????????? | | ??????# ??????#####?????????????????? | | ??????? ?????????????????????????????? | | ???????#??????????????????????????????? | | | | | | | | | | | | | | | | | | | | | | | | | +----------------------------------------------------+ Best States ------------- Heat Dissipation 38 Energy Generation 10 Energy Capacity 250 Matter Stores 294 Matter Capacity 300 Sight Range 18 Terrain Scan Density 10 Evasion (%) 55 Item Schematics ----------------- None Robot Schematics ------------------ None Fabricated ------------ Nothing Repaired ---------- Nothing Studied --------- None Alien Tech Used ----------------- None Achievements -------------- None Challenges ------------ None Game ------ Seed VortexModifiedMapper Manual? 0 Play Time 00:06:33 Cumulative 416.1 hours Start 2026.04.03 @ 20:06:53 End 2026.04.03 @ 20:12:10 Sessions 1 Manual Loads 0 Difficulty Rogue Special Mode None Game No. 113 Rogue 107 Adventurer 0 Explorer 6 Win Type - Total 27 Types 13/1/6/1/1/0/2/1/1/1 Lore% 90 Gallery% 78 Achievement% 76 Wizard Run 0 Options --------- Layout 1 ASCII 0 Keyboard 0 Movement Mouse Keybinds 0 Fullscreen 2 Font 24/Smallcaps Map View 50x35 Zoom Use 0% Tactical HUD 1 Map Filters NONE Filters NONE Steam 1 RUN: 3d3ffa11-132e-4d34-b01b-ea0de1109179